fUST/lending_fUST_20260111
["ID","MTS","AMOUNT","RATE_DAILY","PERIOD"]
[401266775,1768085438687,-1042.09499679,0.00012471,2]
[401266776,1768085438697,-1042.09499679,0.00012471,2]
[401266777,1768085438706,-1042.09499679,0.00012471,2]
[401266778,1768085438717,-1042.09499679,0.00012471,2]
[401266779,1768085438727,-1042.09499679,0.00012471,2]
[401266780,1768085438736,-1042.09499679,0.00012471,2]
[401266781,1768085438746,-1042.09499679,0.00012471,2]
[401266782,1768085438756,-1042.09499679,0.00012471,2]
[401266783,1768085438765,-1042.09499679,0.00012471,2]
[401266784,1768085438774,-1042.09499679,0.00012471,2]
[401266785,1768085438785,-1042.09499679,0.00012471,2]
[401266786,1768085438795,-1042.09499679,0.00012471,2]
[401266787,1768085438805,-1042.09499679,0.00012471,2]
[401266788,1768085438815,-1042.09499679,0.00012471,2]
[401266789,1768085438825,-1042.09499679,0.00012471,2]
[401266790,1768085438834,-1042.09499679,0.00012471,2]
[401266791,1768085438845,-1042.09499679,0.00012471,2]
[401266792,1768085438859,-1042.09499679,0.00012471,2]
[401266793,1768085438869,-1042.09499679,0.00012471,2]
[401266794,1768085438879,-1056.01549002,0.00012471,2]
[401266795,1768085438888,-1056.01549002,0.00012471,2]
[401266796,1768085438898,-1056.01549002,0.00012471,2]
[401266797,1768085438908,-1056.01549002,0.00012471,2]
[401266798,1768085438919,-1056.01549002,0.00012471,2]
[401266799,1768085438929,-1056.01549002,0.00012471,2]
[401266800,1768085438939,-1056.01549002,0.00012471,2]
[401266801,1768085438949,-1056.01549002,0.00012471,2]
[401266802,1768085438958,-1056.01549002,0.00012471,2]
[401266803,1768085438968,-1056.01549002,0.00012471,2]
[401266804,1768085438979,-1056.01549002,0.00012471,2]
[401266805,1768085438990,-1056.01549002,0.00012471,2]
[401266806,1768085439000,-1056.01549002,0.00012471,2]
[401266807,1768085439010,-1056.01549002,0.00012471,2]
[401266808,1768085439020,-1056.01549002,0.00012471,2]
[401266809,1768085439029,-1056.01549002,0.00012471,2]
[401266810,1768085439039,-1056.01549002,0.00012471,2]
[401266811,1768085439048,-1056.01549002,0.00012471,2]
[401266812,1768085439058,-1056.01549002,0.00012471,2]
[401266813,1768085439067,-1056.01549002,0.00012471,2]
[401266814,1768085439077,-1056.01549002,0.00012471,2]
[401266815,1768085439086,-1056.01549002,0.00012471,2]
[401266816,1768085439094,-1056.01549002,0.00012471,2]
[401266817,1768085439103,-1056.01549002,0.00012471,2]
[401266818,1768085439112,-1056.01549002,0.00012471,2]
[401266819,1768085439121,-1056.01549002,0.00012471,2]
[401266820,1768085439130,-1056.01549002,0.00012471,2]
[401266821,1768085439140,-1056.01549002,0.00012471,2]
[401266822,1768085439149,-1056.01549002,0.00012471,2]
[401266823,1768085439158,-1056.01549002,0.00012471,2]
[401266824,1768085439167,-1056.01549002,0.00012471,2]
[401266825,1768085439177,-2152.48234305,0.00012471,2]
[401266826,1768085439186,-500.0,0.00012473,2]
[401266827,1768085439195,-500.0,0.00012474,2]
[401266828,1768085439204,-153.05659276,0.00012474,2]
[401266829,1768085439214,-500.0,0.00012475,2]
[401266830,1768085439223,-500.0,0.00012611,2]
[401266831,1768085439232,-200.0,0.00012611,2]
[401266832,1768085439242,-379.64880868,0.00012612,2]
[401266833,1768085439251,-600.0,0.00012722,2]
[401266834,1768085439261,-200.0,0.00012748,2]
[401266835,1768085439270,-639.65888898,0.00012748,2]
[401266836,1768085439280,-250.0,0.00012884,2]
[401266837,1768085439290,-200.0,0.00012885,2]
[401266839,1768085439300,-500.0,0.00013273,2]
[401266840,1768085439309,-500.0,0.00013273,2]
[401266841,1768085439319,-500.24269708,0.00013273,2]
[401266842,1768085439328,-500.0,0.00013273,2]
[401266843,1768085439338,-500.0,0.00013273,2]
[401266844,1768085439347,-500.0,0.00013273,2]
[401266845,1768085439357,-500.0,0.00013273,2]
[401266846,1768085439366,-500.0,0.00013273,2]
[401266847,1768085439375,-500.0,0.00013273,2]
[401266848,1768085439384,-500.0,0.00013273,2]
[401266849,1768085439394,-500.66277805,0.00013273,2]
[401266850,1768085439403,-500.0,0.00013273,2]
[401266851,1768085439412,-500.0,0.00013273,2]
[401266852,1768085439421,-500.0,0.00013273,2]
[401266854,1768085439430,-500.0,0.00013273,2]
[401266855,1768085439440,-500.0,0.00013273,2]
[401266856,1768085439450,-500.0,0.00013273,2]
[401266857,1768085439459,-500.0,0.00013273,2]
[401266858,1768085439469,-500.84386104,0.00013273,2]
[401266859,1768085439478,-500.0,0.00013273,2]
[401266860,1768085439487,-500.40880935,0.00013273,2]
[401266861,1768085439496,-500.0,0.00013273,2]
[401266862,1768085439505,-500.0,0.00013273,2]
[401266863,1768085439515,-500.0,0.00013273,2]
[401266865,1768085439524,-500.0,0.00013273,2]
[401266866,1768085439533,-500.0,0.00013273,2]
[401266867,1768085439542,-500.0,0.00013273,2]
[401266868,1768085439551,-544.98070057,0.00013273,2]
[401266869,1768085439560,-500.0,0.00013273,2]
[401266870,1768085439568,-500.0,0.00013273,2]
[401266871,1768085439577,-500.0,0.00013273,2]
[401266872,1768085439587,-501.21467235,0.00013273,2]
[401266873,1768085439596,-500.0,0.00013273,2]
[401266874,1768085439605,-500.0,0.00013273,2]
[401266875,1768085439614,-500.0,0.00013273,2]
[401266876,1768085439728,-500.0,0.00013273,2]
[401266877,1768085439737,-500.0,0.00013273,2]
[401266878,1768085439746,-500.0,0.00013273,2]
[401266879,1768085439755,-500.0,0.00013273,2]
[401266880,1768085439764,-500.0,0.00013273,2]
[401266881,1768085439772,-500.0,0.00013273,2]
[401266882,1768085439781,-500.0,0.00013273,2]
[401266883,1768085439790,-300.0,0.00013673,2]
[401266884,1768085439799,-500.0,0.00013698,2]
[401266885,1768085439808,-500.0,0.00013698,2]
[401266886,1768085439817,-500.0,0.00013698,2]
[401266887,1768085439826,-500.0,0.00013698,2]
[401266888,1768085439835,-500.0,0.00013698,2]
[401266889,1768085439844,-500.0,0.00013698,2]
[401266890,1768085439855,-500.0,0.00013698,2]
[401266891,1768085439865,-500.0,0.00013698,2]
[401266892,1768085439874,-239.37126777,0.00013698,2]
[401266893,1768085439882,-150.1,0.00013699,2]
[401266894,1768085439891,-500.0,0.00013699,2]
[401266895,1768085439900,-500.0,0.00013699,2]
[401266896,1768085439909,-500.0,0.00013699,2]
[401266897,1768085439918,-500.0,0.00013699,2]
[401266898,1768085439927,-500.0,0.00013699,2]
[401266899,1768085439937,-500.0,0.00013699,2]
[401266900,1768085439946,-500.0,0.00013699,2]
[401266901,1768085439955,-252.81793801,0.00013699,2]
[401266902,1768085439963,-500.0,0.00013699,2]
[401266903,1768085439972,-500.0,0.00013699,2]
[401266904,1768085439981,-500.0,0.00013699,2]
[401266905,1768085439990,-500.0,0.00013699,2]
[401266906,1768085439998,-500.0,0.00013699,2]
[401266907,1768085440007,-500.0,0.00013699,2]
[401266908,1768085440016,-546.4721137,0.00013699,2]
[401266909,1768085440025,-500.0,0.00013699,2]
[401266910,1768085440034,-500.0,0.00013699,2]
[401266911,1768085440043,-500.0,0.00013699,2]
[401266912,1768085440051,-500.0,0.00013699,2]
[401266913,1768085440060,-500.0,0.00013699,2]
[401266914,1768085440069,-500.0,0.00013699,2]
[401266915,1768085440078,-500.0,0.00013699,2]
[401266916,1768085440087,-500.0,0.00013699,2]
[401266918,1768085440097,-500.0,0.00013699,2]
[401266919,1768085440107,-500.0,0.00013699,2]
[401266920,1768085440116,-469.53593685,0.00013699,2]
[401266922,1768085440125,-500.0,0.00013699,2]
[401266923,1768085440135,-500.0,0.00013699,2]
[401266924,1768085440145,-500.0,0.00013699,2]
[401266925,1768085440156,-500.0,0.00013699,2]
[401266926,1768085440167,-500.0,0.00013699,2]
[401266927,1768085440176,-443.77041137,0.00013699,2]
[401266928,1768085440187,-500.0,0.00013699,2]
[401266929,1768085440196,-500.0,0.00013699,2]
[401266930,1768085440207,-500.0,0.00013699,2]
[401266931,1768085440216,-500.0,0.00013699,2]
[401266932,1768085440226,-500.0,0.00013699,2]
[401266933,1768085440235,-441.79967602,0.00013699,2]
[401266934,1768085440246,-500.0,0.00013699,2]
[401266935,1768085440256,-501.32276914,0.00013699,2]
[401266936,1768085440265,-500.0,0.00013699,2]
[401266937,1768085440274,-500.0,0.00013699,2]
[401266938,1768085440284,-268.13097792,0.00013699,2]
[401266939,1768085440293,-500.0,0.00013699,2]
[401266940,1768085440303,-500.0,0.00013699,2]
[401266941,1768085440313,-366.95119537,0.00013699,2]
[401266942,1768085440323,-295.9151759,0.00013699,2]
[401266943,1768085440334,-500.0,0.00013699,2]
[401266944,1768085440345,-500.0,0.00013699,2]
[401266945,1768085440355,-500.0,0.00013699,2]
[401266946,1768085440364,-500.0,0.00013699,2]
[401266947,1768085440373,-500.0,0.00013699,2]
[401266948,1768085440383,-500.66295379,0.00013699,2]
[401266949,1768085440392,-500.0,0.00013699,2]
[401266950,1768085440402,-500.0,0.00013699,2]
[401266951,1768085440411,-500.0,0.00013699,2]
[401266952,1768085440421,-568.99927688,0.00013821,2]
[401266953,1768085440430,-1000.0,0.00013821,2]
[401266954,1768085440440,-588.2860466,0.00013821,2]
[401266955,1768085440449,-1000.0,0.00013821,2]
[401266956,1768085440458,-796.30755519,0.00013821,2]
[401266957,1768085440468,-300.04302299,0.00013821,2]
[401266958,1768085440477,-177.89646739,0.00013821,2]
[401266959,1768085440487,-1010.98739129,0.00013821,2]
[401266960,1768085440496,-1000.0,0.00013821,2]
[401266961,1768085440506,-761.64122828,0.00013821,2]
[401266962,1768085440515,-167.6319526,0.00013821,2]
[401266963,1768085440524,-1000.0,0.00013821,2]
[401266964,1768085440534,-1000.0,0.00013821,2]
[401266965,1768085440543,-1000.0,0.00013821,2]
[401266966,1768085440552,-1000.0,0.00013821,2]
[401266967,1768085440562,-1113.91769968,0.00013821,2]
[401266968,1768085440571,-1000.0,0.00013821,2]
[401266969,1768085440580,-1000.0,0.00013821,2]
[401266970,1768085440590,-1000.0,0.00013821,2]
[401266971,1768085440600,-1000.0,0.00013821,2]
[401266972,1768085440609,-1000.0,0.00013821,2]
[401266973,1768085440619,-1000.0,0.00013821,2]
[401266974,1768085440628,-1000.0,0.00013821,2]
[401266975,1768085440637,-500.0,0.00013821,2]
[401266976,1768085440647,-223.48736773,0.00013821,2]
[401266977,1768085440655,-500.0,0.00013821,2]
[401266978,1768085440665,-1000.0,0.00013821,2]
[401266979,1768085440675,-1000.0,0.00013821,2]
[401266980,1768085440685,-1000.0,0.00013821,2]
[401266981,1768085440695,-1000.0,0.00013821,2]
[401266982,1768085440706,-473.2526551,0.00013821,2]
[401266983,1768085440716,-500.0,0.00013821,2]
[401266984,1768085440725,-1000.0,0.00013821,2]
[401266985,1768085440737,-720.0,0.00013995,2]
[401266986,1768085440747,-250.0,0.00014022,2]
[401266987,1768085440756,-600.0,0.00014221,2]
[401266988,1768085440765,-313.64870907,0.00014247,2]
[401266989,1768085440777,-500.0,0.00014247,2]
[401266990,1768085440787,-500.0,0.00014247,2]
[401266991,1768085440796,-501.8641087,0.00014247,2]
[401266992,1768085440805,-500.0,0.00014247,2]
[401266993,1768085440814,-655.09397851,0.00014247,2]
[401266994,1768085440824,-1000.0,0.00014247,2]
[401266995,1768085440835,-1000.0,0.00014247,2]
[401266996,1768085440847,-1000.0,0.00014247,2]
[401266997,1768085440859,-500.62599215,0.00014247,2]
[401266998,1768085440868,-500.68900305,0.00014247,2]
[401266999,1768085440877,-500.0,0.00014247,2]
[401267000,1768085440887,-501.75744597,0.00014247,2]
[401267001,1768085440895,-1000.0,0.00014247,2]
[401267002,1768085440907,-500.0,0.00014247,2]
[401267003,1768085440917,-1000.0,0.00014247,2]
[401267004,1768085440927,-500.0,0.00014247,2]
[401267005,1768085440938,-500.76011771,0.00014247,2]
[401267006,1768085440947,-500.0,0.00014247,2]
[401267007,1768085440956,-286.81506182,0.00014247,2]
[401267008,1768085440965,-500.0,0.00014247,2]
[401267009,1768085440975,-1000.0,0.00014247,2]
[401267010,1768085440984,-500.0,0.00014247,2]
[401267011,1768085440993,-1000.0,0.00014247,2]
[401267012,1768085441002,-1000.0,0.00014247,2]
[401267013,1768085441011,-500.0,0.00014247,2]
[401267014,1768085441020,-1012.33435394,0.00014247,2]
[401267015,1768085441029,-500.0,0.00014247,2]
[401267016,1768085441039,-500.0,0.00014247,2]
[401267017,1768085441048,-500.0,0.00014247,2]
[401267018,1768085441057,-500.0,0.00014247,2]
[401267019,1768085441066,-1000.0,0.00014368,2]
[401267020,1768085441075,-500.0,0.00014368,2]
[401267021,1768085441084,-1500.0,0.00014368,2]
[401267022,1768085441093,-660.64782172,0.00014368,2]
[401267023,1768085441102,-500.0,0.00014368,2]
[401267024,1768085441112,-345.42301472,0.00014368,2]
[401267025,1768085441121,-1000.0,0.00014368,2]
[401267026,1768085441131,-500.0,0.00014368,2]
[401267027,1768085441140,-1000.0,0.00014368,2]
[401267028,1768085441148,-1391.0513895,0.00014368,2]
[401267029,1768085441157,-1006.74415815,0.00014368,2]
[401267030,1768085441167,-1500.0,0.00014368,2]
[401267031,1768085441176,-1500.0,0.00014368,2]
[401267032,1768085441185,-1000.0,0.00014368,2]
[401267033,1768085441194,-1500.0,0.00014368,2]
[401267034,1768085441203,-5000.0,0.0001451,2]
[401267035,1768085441212,-437.56133882,0.00014612,2]
[401267036,1768085441221,-1514.12213244,0.00014795,2]
[401267037,1768085441230,-488.64589349,0.00014795,2]
[401267038,1768085441239,-640.67728986,0.00014795,2]
[401267039,1768085441248,-602.53259662,0.00014795,2]
[401267040,1768085441258,-1500.0,0.00014795,2]
[401267041,1768085441267,-482.84709438,0.00014795,2]
[401267042,1768085441275,-1498.9723282,0.00014795,2]
[401267043,1768085441284,-1500.0,0.00014795,2]
[401267044,1768085441294,-100000.0,0.00014882,2]
[401267045,1768085441304,-1000.0,0.00015,2]
[401267046,1768085441315,-545.914549,0.00015068,2]
[401267047,1768085441326,-445.01,0.00015295,2]
[401267048,1768085441337,-864.0,0.00015394,2]
[401267049,1768085441348,-380.1,0.00016438,2]
[401267050,1768085441359,-594.49843147,0.00016438,2]
[401267051,1768085441368,-154.9098912,0.00016438,2]
[401267052,1768085441377,-260.11060349,0.00016438,2]
[401267053,1768085441387,-495.47386895,0.00016612,2]
[401267054,1768085441396,-1000.0,0.00016934,2]
[401267055,1768085441406,-3382.93313115,0.00017412,2]
[401267056,1768085441416,-1283.61559644,0.00017485,2]
[401267057,1768085441426,-380.1,0.00018317,2]
[401267058,1768085441436,-545.914549,0.00018493,2]
[401267059,1768085441447,-553.38639909,0.00018612,2]
[401267060,1768085441456,-1000.0,0.00018627,2]
[401267061,1768085441466,-244.0,0.00018627,2]
[401267062,1768085441475,-303.10001603,0.000189,2]
[401267063,1768085441486,-303.10001603,0.00019089,2]
[401267064,1768085441496,-303.10001603,0.00019278,2]
[401267065,1768085441507,-11484.62,0.000193,2]
[401267066,1768085441517,-166.96,0.000193,2]
[401267067,1768085441527,-163.88,0.000193,2]
[401267068,1768085441537,-1660.92,0.000193,2]
[401267069,1768085441547,-303.10001603,0.00019467,2]
[401267070,1768085441557,-303.10001603,0.00019656,2]
[401267071,1768085441566,-454.65002405,0.00019845,4]
[401267072,1768085441575,-160.0,0.00019869,2]
[401267073,1768085441585,-1041.66666667,0.00019869,2]
[401267074,1768085441594,-167.58,0.000199,2]
[401267075,1768085441603,-151.89012023,0.0002,2]
[401267076,1768085441613,-454.65002405,0.00020034,4]
[401267077,1768085441622,-380.1,0.00020197,2]
[401267078,1768085441632,-454.65002405,0.00020223,4]
[401267079,1768085441643,-454.65002405,0.00020412,4]
[401267080,1768085441654,-1000.0,0.0002049,2]
[401267081,1768085441663,-492.0,0.0002049,2]
[401267082,1768085441672,-454.65002405,0.00020601,4]
[401267083,1768085441681,-611.29892923,0.00020612,2]
[401267084,1768085441691,-30000.0,0.00021671,2]
[401267085,1768085441700,-151.0,0.00021671,2]
[401267086,1768085441709,-151.0,0.00021671,2]
[401267087,1768085441718,-151.0,0.00021671,2]
[401267088,1768085441728,-151.0,0.00021671,2]
[401267089,1768085441737,-151.0,0.00021671,2]
[401267090,1768085441746,-151.0,0.00021671,2]
[401267091,1768085441756,-151.0,0.00021671,2]
[401267092,1768085441765,-151.0,0.00021671,2]
[401267093,1768085441774,-151.0,0.00021671,2]
[401267094,1768085441783,-151.0,0.00021671,2]
[401267095,1768085441791,-151.0,0.00021671,2]
[401267096,1768085441800,-151.0,0.00021671,2]
[401267097,1768085441809,-151.0,0.00021671,2]
[401267098,1768085441818,-151.0,0.00021671,2]
[401267099,1768085441827,-151.0,0.00021671,2]
[401267100,1768085441836,-151.0,0.00021671,2]
[401267101,1768085441845,-151.0,0.00021671,2]
[401267102,1768085441855,-151.0,0.00021671,2]
[401267103,1768085441868,-151.0,0.00021671,2]
[401267104,1768085441880,-151.0,0.00021671,2]
[401267105,1768085441891,-545.914549,0.00021918,2]
[401267106,1768085441900,-380.1,0.00022076,2]
[401267107,1768085441909,-5055.88306003,0.00022219,2]
[401267108,1768085441919,-1000.0,0.00022539,10]
[401267109,1768085441930,-791.0,0.00022539,10]
[401267110,1768085441939,-1283.61559644,0.00022595,2]
[401267111,1768085441949,-669.21145937,0.00022612,2]
[401267112,1768085441960,-500.0,0.00023866,2]
[401267113,1768085441969,-380.1,0.00023955,2]
[401267114,1768085441978,-727.1239895,0.00024612,2]
[401267115,1768085441987,-500.0,0.00024658,2]
[401267116,1768085441996,-1000.0,0.00024792,10]
[401267117,1768085442006,-1000.0,0.00024792,10]
[401267118,1768085442015,-500.0,0.00024795,2]
[401267119,1768085442025,-290.0495251,0.00024832,2]
[401267120,1768085442035,-337988.424197,0.000249,2]
[401267121,1768085442045,-500.0,0.00024932,2]
[401267122,1768085442056,-500.0,0.00025069,2]
[401267123,1768085442065,-250.0,0.00025205,2]
[401267124,1768085442075,-500.0,0.00025206,2]
[401267125,1768085442083,-545.914549,0.00025342,2]
[401267126,1768085442092,-500.0,0.00025343,2]
[401267127,1768085442101,-500.0,0.0002548,2]
[401267128,1768085442110,-500.0,0.00025617,2]
[401267129,1768085442119,-350.0,0.00025753,2]
[401267130,1768085442128,-380.1,0.00025834,2]
[401267131,1768085442138,-285.4711241,0.00025973,18]
[401267132,1768085442147,-5000.0,0.00026105,2]
[401267133,1768085442157,-290.04952508,0.0002618,2]
[401267134,1768085442166,-450.0,0.00026301,2]
[401267135,1768085442175,-1660.92,0.000266,14]
[401267136,1768085442185,-785.03651964,0.00026612,2]
[401267137,1768085442195,-550.0,0.00026849,2]
[401267138,1768085442204,-1000.0,0.00027272,30]
[401267139,1768085442214,-1000.0,0.00027272,30]
[401267140,1768085442223,-579.0,0.00027272,30]
[401267141,1768085442233,-700.0,0.00027397,5]
[401267143,1768085442334,-290.04952508,0.00027528,2]
[401267144,1768085442344,-516.35781364,0.00027603,7]
[401267145,1768085442353,-1283.61559644,0.00027705,2]
[401267146,1768085442363,-380.1,0.00027714,2]
[401267147,1768085442372,-163.0,0.00028164,28]
[401267148,1768085442383,-842.94904978,0.00028612,2]
[401267149,1768085442395,-5000.0,0.00028705,2]
[401267150,1768085442406,-545.914549,0.00028767,60]
[401267151,1768085442416,-290.04952508,0.00028876,2]
[401267152,1768085442426,-180.55664476,0.00029588,3]
[401267153,1768085442437,-380.1,0.00029593,3]
[401267154,1768085442447,-210.66596428,0.00029868,5]
[401267155,1768085442458,-1000.0,0.00029999,30]
[401267156,1768085442467,-1000.0,0.00029999,30]
[401267157,1768085442476,-1000.0,0.00029999,30]
[401267158,1768085442486,-300.0,0.00030137,5]
[401267159,1768085442495,-290.04952508,0.00030224,2]
[401267160,1768085442506,-174.0,0.00030356,39]
[401267161,1768085442515,-900.86157992,0.00030612,2]
[401267162,1768085442526,-210.66596427,0.00030791,10]
[401267163,1768085442546,-206.69953721,0.00031051,14]
[401267164,1768085442556,-310.06,0.00031051,14]
[401267165,1768085442566,-388.0,0.00031089,2]
[401267166,1768085442577,-5000.0,0.00031305,2]
[401267167,1768085442587,-220.77897915,0.00031305,2]
[401267168,1768085442596,-380.1,0.00031472,4]
[401267169,1768085442606,-290.04952508,0.00031571,2]
[401267170,1768085442615,-385.0,0.00031626,2]
[401267171,1768085442625,-385.0,0.00031658,2]
[401267172,1768085442634,-385.0,0.00031786,2]
[401267173,1768085442646,-385.0,0.0003185,7]
[401267174,1768085442657,-385.0,0.00031994,7]
[401267175,1768085442668,-387.0,0.00032095,2]
[401267176,1768085442678,-387.0,0.00032131,2]
[401267177,1768085442688,-171.0,0.000324,120]
[401267178,1768085442700,-958.77411005,0.00032612,2]
[401267179,1768085442709,-385.0,0.00032624,7]
[401267180,1768085442719,-385.0,0.00032639,2]
[401267181,1768085442728,-385.0,0.00032668,7]
[401267182,1768085442737,-11484.62,0.000327,2]
[401267183,1768085442748,-1283.61559644,0.00032815,2]
[401267184,1768085442758,-300.0,0.00032822,2]
[401267185,1768085442767,-300.0,0.00032822,2]
[401267186,1768085442776,-300.0,0.00032822,2]
[401267187,1768085442786,-300.0,0.00032822,2]
[401267188,1768085442795,-385.0,0.00032832,7]
[401267189,1768085442804,-999.0,0.00032876,120]
[401267190,1768085442814,-450.0,0.00032877,5]
[401267191,1768085442825,-1266.7361,0.00032877,10]
[401267192,1768085442834,-385.0,0.00032915,7]
[401267193,1768085442846,-290.04952508,0.00032919,2]
[401267194,1768085442857,-385.0,0.0003293,2]
[401267195,1768085442869,-1000.0,0.00032999,30]
[401267196,1768085442879,-1000.0,0.00032999,30]
[401267197,1768085442889,-1000.0,0.00032999,30]
[401267198,1768085442899,-715.0,0.00032999,30]
[401267199,1768085442909,-385.0,0.00033083,2]
[401267200,1768085442918,-385.0,0.00033147,2]
[401267201,1768085442928,-387.0,0.00033183,2]
[401267202,1768085442940,-151.6053793,0.000332,117]
[401267203,1768085442950,-151.6053793,0.000332,117]
[401267204,1768085442959,-151.6053793,0.000332,117]
[401267205,1768085442968,-385.0,0.00033202,2]
[401267206,1768085442979,-385.0,0.0003321,2]
[401267207,1768085442988,-1043344.6556,0.0003322,30]
[401267208,1768085442997,-385.0,0.00033268,2]
[401267209,1768085443007,-385.0,0.00033342,2]
[401267210,1768085443016,-380.1,0.00033351,5]
[401267211,1768085443025,-170.0,0.00033644,62]
[401267212,1768085443035,-210.0,0.00033699,5]
[401267213,1768085443045,-5000.0,0.00033905,3]
[401267214,1768085443054,-387.0,0.00033913,7]
[401267215,1768085443063,-387.0,0.00033927,7]
[401267216,1768085443073,-387.0,0.00033937,2]
[401267217,1768085443083,-385.0,0.00033968,2]
[401267218,1768085443093,-999.0,0.00033972,120]
[401267219,1768085443102,-1041.66666667,0.00034,30]
[401267220,1768085443112,-290.04952508,0.00034267,2]
[401267221,1768085443122,-354.77,0.00034321,60]
[401267222,1768085443132,-354.77,0.00034421,60]
[401267223,1768085443142,-270.0,0.00034521,5]
[401267224,1768085443152,-354.77,0.00034521,60]
[401267225,1768085443161,-1016.68664019,0.00034612,120]
[401267226,1768085443171,-354.77,0.00034621,60]
[401267227,1768085443180,-354.77,0.00034721,60]
[401267228,1768085443190,-354.77,0.00034821,60]
[401267229,1768085443199,-354.77,0.00034921,60]
[401267230,1768085443209,-354.77,0.00035021,60]
[401267231,1768085443218,-999.0,0.00035068,120]
[401267232,1768085443228,-354.77,0.00035121,60]
[401267233,1768085443237,-354.77,0.00035221,60]
[401267234,1768085443247,-380.1,0.00035231,6]
[401267235,1768085443256,-354.77,0.00035321,60]
[401267236,1768085443266,-330.0,0.00035342,5]
[401267237,1768085443275,-1660.92,0.000354,30]
[401267238,1768085443284,-354.77,0.00035421,60]
[401267239,1768085443293,-354.77,0.00035521,60]
[401267240,1768085443302,-756.0,0.00035552,30]
[401267241,1768085443311,-296.0,0.00035552,30]
[401267242,1768085443320,-5058.79910613,0.00035578,48]
[401267243,1768085443330,-499.6369,0.00035596,2]
[401267244,1768085443339,-290.04952508,0.00035615,2]
[401267245,1768085443348,-500.0,0.00035616,30]
[401267246,1768085443357,-334.34878739,0.00035616,7]
[401267247,1768085443367,-600.0,0.00035616,5]
[401267249,1768085443377,-354.77,0.00035621,60]
[401267250,1768085443386,-499.6369,0.00035696,2]
[401267251,1768085443395,-354.77,0.00035721,60]
[401267252,1768085443405,-499.6369,0.00035796,2]
[401267253,1768085443414,-354.77,0.00035821,60]
[401267254,1768085443424,-151.0,0.0003589,14]
[401267255,1768085443434,-499.6369,0.00035896,2]
[401267256,1768085443443,-354.77,0.00035921,60]
[401267257,1768085443453,-563395.51149451,0.00035937,4]
[401267258,1768085443462,-499.6369,0.00035996,2]
[401267259,1768085443471,-377.1655679,0.00036,30]
[401267260,1768085443480,-354.77,0.00036021,60]
[401267261,1768085443489,-2496.11668606,0.00036053,2]
[401267263,1768085443498,-499.6369,0.00036096,2]
[401267265,1768085443507,-354.77,0.00036121,60]
[401267266,1768085443517,-999.0,0.00036164,120]
[401267268,1768085443525,-500.0,0.00036164,30]
[401267270,1768085443538,-180.020001,0.00036164,5]
[401267272,1768085443551,-2496.11668606,0.00036185,2]
[401267274,1768085443564,-354.77,0.00036221,60]
[401267276,1768085443577,-1000.0,0.00036299,30]
[401267278,1768085443590,-1000.0,0.00036299,30]
[401267280,1768085443601,-1000.0,0.00036299,30]
[401267282,1768085443611,-354.77,0.00036321,60]
[401267284,1768085443622,-354.9686,0.00036421,60]
[401267286,1768085443634,-151.0,0.00036463,14]
[401267288,1768085443646,-5000.0,0.00036505,3]
[401267290,1768085443657,-184.06581596,0.00036609,29]
[401267292,1768085443668,-1074.59917033,0.00036612,120]
[401267294,1768085443680,-2496.11668606,0.00036627,2]
[401267296,1768085443692,-166.894,0.00036669,46]
[401267298,1768085443703,-500.0,0.00036712,30]
[401267300,1768085443715,-367.80015612,0.00036712,30]